fUSD/lending_fUSD_20251109
["ID","MTS","AMOUNT","RATE_DAILY","PERIOD"]
[393450641,1762673272221,-10000.01,0.00015,2]
[393450642,1762673272340,-10000.01,0.00015,2]
[393450643,1762673272464,-10000.01,0.00015,2]
[393450644,1762673272620,-10000.01,0.00015,2]
[393450645,1762673273939,-168.0,0.00015,2]
[393450646,1762673274091,-10000.01,0.00015,2]
[393450647,1762673274230,-10000.01,0.00015,2]
[393450648,1762673274356,-10000.01,0.00015,2]
[393450649,1762673277120,-10000.01,0.00015,2]
[393450650,1762673277231,-10000.01,0.00015,2]
[393450651,1762673277349,-10000.01,0.00015,2]
[393450652,1762673277481,-10000.01,0.00015,2]
[393450653,1762673277712,-10000.01,0.00015,2]
[393450654,1762673277788,-296.51333197,0.00015,2]
[393450655,1762673278218,-10000.01,0.00015,2]
[393450656,1762673281661,-438.4632055,0.00015,2]
[393450657,1762673283294,-300.0,0.00014999,2]
[393450658,1762673283328,-9400.01,0.00015,2]
[393450659,1762673283507,-10000.01,0.00015,2]
[393450660,1762673283643,-10000.01,0.00015,2]
[393450661,1762673286226,-216.61780305,0.00015,2]
[393450662,1762673288633,565.84422964,0.000135,2]
[393450663,1762673290691,-365.67096414,0.00015,2]
[393450664,1762673292188,-10000.01,0.00015,2]
[393450665,1762673292292,-10000.01,0.00015,2]
[393450666,1762673292428,-10000.01,0.00015,2]
[393450667,1762673292545,-10000.01,0.00015,2]
[393450668,1762673292663,-10000.01,0.00015,2]
[393450669,1762673292943,-10000.01,0.00015,2]
[393450670,1762673292996,-276.99811313,0.00015,2]
[393450671,1762673293058,-10000.01,0.00015,2]
[393450672,1762673295234,-10000.01,0.00015,2]
[393450673,1762673295534,-10000.01,0.00015,2]
[393450674,1762673295608,-165.0032782,0.00015,2]
[393450675,1762673295670,-10000.01,0.00015,2]
[393450676,1762673297145,-362.89705698,0.00015,2]
[393450677,1762673303679,222.1339535,0.0001,2]
[393450678,1762673305479,-354.47351743,0.00015,2]
[393450679,1762673307123,-284.2851,0.00015,2]
[393450680,1762673311372,-288.67305142,0.00015,2]
[393450682,1762673313526,-500.0,0.00014999,2]
[393450683,1762673313556,-346.566003,0.00014999,2]
[393450684,1762673313587,-500.0,0.00014999,2]
[393450685,1762673313617,-528.9885792,0.00014999,2]
[393450686,1762673315647,-182.27789715,0.00015,2]
[393450687,1762673316348,500.0,0.00014999,2]
[393450688,1762673316385,590.22508813,0.00014999,2]
[393450689,1762673316421,435.28924075,0.00014999,2]
[393450690,1762673316478,538.32109464,0.00014999,2]
[393450691,1762673316545,53431.89801184,0.00015,3]
[393450692,1762673316705,100000.0,0.00015,3]
[393450693,1762673316800,500.0,0.00014999,2]
[393450694,1762673316863,500.0,0.00014999,2]
[393450695,1762673319989,-172.42193912,0.00015,2]
[393450696,1762673325020,-183.45986164,0.00015,2]
[393450697,1762673327921,-229.34459168,0.00015,2]
[393450698,1762673328089,509.3844798,0.000149,2]
[393450699,1762673344156,-300.0,0.00015,2]
[393450700,1762673350621,300.699974,0.000149,2]
[393450701,1762673351163,496.98432216,0.00014973,2]
[393450702,1762673351589,-235.86870532,0.00015,2]
[393450703,1762673351696,500.0,0.00014973,2]
[393450704,1762673351814,500.0,0.00014973,2]
[393450705,1762673351861,500.0,0.00014973,2]
[393450706,1762673352073,377.99663612,0.00014973,2]
[393450707,1762673352096,122.00336388,0.00014973,2]
[393450708,1762673352905,501.45086353,0.00014973,2]
[393450724,1762673356608,278.59983674,0.000149,2]
[393450725,1762673357696,-324.26015561,0.00015,2]
[393450726,1762673358229,500.0,0.00027979,120]
[393450727,1762673358460,509.81604037,0.00027989,120]
[393450729,1762673367888,605.38589172,0.000149,2]
[393450730,1762673368029,324.260156,0.00014925,2]
[393450731,1762673369420,-250.0,0.00015,2]
[393450732,1762673372333,-164.75012398,0.00015,2]
[393450733,1762673384232,414.750124,0.00014925,2]
[393450734,1762673385104,-371.05936097,0.00015,2]
[393450735,1762673389299,-300.0,0.00015,2]
[393450736,1762673390840,815.7871698,0.000149,2]
[393450737,1762673391063,-298.79588033,0.00015,2]
[393450738,1762673398123,-275.26402114,0.00015,2]
[393450739,1762673398765,969.855241,0.00014925,2]
[393450740,1762673400798,-162.92753442,0.00015,2]
[393450741,1762673401560,300.0,0.00014999,2]
[393450742,1762673401979,300.0,0.00014999,2]
[393450743,1762673402018,150.0,0.00014999,2]
[393450744,1762673402060,1200.0,0.00014999,2]
[393450745,1762673402137,300.0,0.00014999,2]
[393450746,1762673405500,500.0,0.00014973,2]
[393450747,1762673406860,-258.36779609,0.00015,2]
[393450748,1762673408691,3217.91735333,0.000149,2]
[393450749,1762673408715,599.64496666,0.000149,2]
[393450750,1762673409139,500.85171979,0.00014973,2]
[393450751,1762673411959,438.191556,0.00014925,2]
[393450752,1762673412892,-279.30669185,0.00015,2]
[393450753,1762673413459,300.0,0.00014999,2]
[393450754,1762673416073,-359.85793903,0.00015,2]
[393450755,1762673419587,359.23664888,0.0001499,2]
[393450756,1762673419653,359.23664888,0.0001499,2]
[393450757,1762673419732,359.23664888,0.0001499,2]
[393450758,1762673426444,897.532427,0.00014925,2]
[393450759,1762673427203,-239.07632358,0.00015,2]
[393450760,1762673430271,-300.0,0.00015,2]
[393450763,1762673431363,-125037.85996939,0.00015,2]
[393450765,1762673431375,-28079.77975466,0.00015,2]
[393450772,1762673431581,-27838.27985294,0.00015,2]
[393450773,1762673431592,-1147.55700307,0.00015,2]
[393450774,1762673431622,-2876.68304327,0.00015,2]
[393450775,1762673431633,-5528.15418,0.00015,2]
[393450893,1762673432791,224.46598175,0.000149,2]
[393450902,1762673432866,-211.616053,0.00015,2]
[393450975,1762673433563,-375.88815803,0.00015,2]
[393450984,1762673433642,-317.83784197,0.00015,2]
[393450995,1762673433737,-179.17472714,0.00015,2]
[393451005,1762673433823,-254.0,0.00015,2]
[393451014,1762673433903,-359.21535272,0.00015,2]
[393451017,1762673433993,-252.51569999,0.00015,2]
[393451028,1762673434122,-266.73273973,0.00015,2]
[393451038,1762673434216,-352.28677413,0.00015,2]
[393451051,1762673434331,-680.5431875,0.00015,2]
[393451062,1762673434432,-250.0,0.00015,2]
[393451073,1762673434527,-228.09862864,0.00015,2]
[393451084,1762673434623,-307.17818093,0.00015,2]
[393451095,1762673434721,-464.83204402,0.00015,2]
[393451106,1762673434816,-1614.5830368,0.00015,2]
[393451331,1762673437472,-10831.09543311,0.00015,2]
[393451332,1762673437486,-4933.5104532,0.00015,2]
[393451333,1762673437498,-780.40923347,0.00015,2]
[393451334,1762673437509,-597.61849702,0.00015,2]
[393451335,1762673437559,-26915.76199999,0.00015,2]
[393451336,1762673437571,-4576644.5998587,0.00015,2]
[393451338,1762673437581,-3230616.34750787,0.00015,3]
[393451340,1762673437591,-15280.4489858,0.00015,2]
[393451341,1762673437601,-9421.4788883,0.00015101,2]
[393451342,1762673437610,-300.69997396,0.00015233,2]
[393451343,1762673437619,-190.10232692,0.00015235,2]
[393451344,1762673437629,-815.78716976,0.00015329,2]
[393451345,1762673437638,-195.0,0.00015335,2]
[393451346,1762673437648,-250.0,0.00015335,2]
[393451348,1762673437657,-503.17010096,0.000154,2]
[393451349,1762673437666,-303.65,0.0001546,2]
[393451350,1762673437676,-224.4659817,0.000155,2]
[393451351,1762673437685,-29121.53,0.00015509,2]
[393451352,1762673437695,-1000.0,0.00015521,2]
[393451353,1762673437704,-300.69997396,0.00015567,2]
[393451354,1762673437714,-2500.0,0.00015669,2]
[393451355,1762673437723,-237.71172418,0.00015669,2]
[393451356,1762673437732,-815.78716976,0.00015757,2]
[393451357,1762673437741,-195.0,0.00015895,2]
[393451358,1762673437750,-300.69997396,0.000159,2]
[393451359,1762673437760,-478.20968403,0.00016,3]
[393451360,1762673437769,-560.6806068,0.00016068,2]
[393451361,1762673437779,-414.84008335,0.00016094,2]
[393451362,1762673437788,-224.4659817,0.000161,2]
[393451363,1762673437798,-255.0,0.00016124,2]
[393451364,1762673437810,-815.78716976,0.00016186,2]
[393451365,1762673437825,-300.69997396,0.00016233,2]
[393451366,1762673437970,-500.0,0.00016237,2]
[393451367,1762673437982,-6641.826,0.00016296,2]
[393451368,1762673437992,-279.885,0.00016296,2]
[393451369,1762673438002,-4070.2655,0.00016296,2]
[393451370,1762673438012,-736.4187,0.00016296,2]
[393451371,1762673438021,-303.65,0.00016319,2]
[393451372,1762673438031,-19852.48433534,0.00016338,2]
[393451373,1762673438041,-300.0,0.00016371,2]
[393451374,1762673438051,-300.0,0.00016371,2]
[393451375,1762673438060,-190.47853347,0.00016371,2]
[393451376,1762673438075,-500.0,0.00016373,2]
[393451377,1762673438084,-501.59027207,0.00016373,2]
[393451378,1762673438095,-500.0,0.00016373,2]
[393451379,1762673438104,-562.61261097,0.00016373,2]
[393451380,1762673438117,-500.0,0.00016373,2]
[393451381,1762673438126,-500.0,0.00016373,2]
[393451382,1762673438136,-501.42288003,0.00016373,2]
[393451383,1762673438146,-500.0,0.00016373,2]
[393451384,1762673438157,-500.0,0.00016373,2]
[393451385,1762673438167,-157.62254318,0.00016373,2]
[393451386,1762673438176,-500.0,0.00016373,2]
[393451387,1762673438186,-164.4534525,0.00016373,2]
[393451388,1762673438196,-500.0,0.00016373,2]
[393451389,1762673438206,-500.84354259,0.00016373,2]
[393451390,1762673438216,-91656.88378257,0.00016389,2]
[393451391,1762673438226,-500.0,0.00016395,2]
[393451392,1762673438236,-500.0,0.00016395,2]
[393451393,1762673438245,-532.10925199,0.00016395,2]
[393451394,1762673438256,-500.0,0.00016395,2]
[393451395,1762673438266,-500.0,0.00016395,2]
[393451396,1762673438277,-500.0,0.00016395,2]
[393451397,1762673438286,-500.0,0.00016395,2]
[393451398,1762673438295,-500.0,0.00016395,2]
[393451399,1762673438306,-500.0,0.00016395,2]
[393451400,1762673438317,-500.0,0.00016395,2]
[393451401,1762673438326,-500.0,0.00016395,2]
[393451402,1762673438336,-420000.0,0.00016396,2]
[393451403,1762673438346,-420.0,0.00016416,2]
[393451404,1762673438356,-420.0,0.00016416,2]
[393451405,1762673438366,-300.0,0.00016416,2]
[393451406,1762673438376,-500.0,0.00016438,2]
[393451407,1762673438386,-500.0,0.00016438,2]
[393451408,1762673438396,-587.40245327,0.00016438,2]
[393451409,1762673438405,-500.0,0.00016438,2]
[393451410,1762673438415,-327.83994235,0.00016438,2]
[393451411,1762673438425,-500.0,0.00016438,2]
[393451412,1762673438435,-500.0,0.00016438,2]
[393451413,1762673438445,-430.0,0.00016438,2]
[393451414,1762673438456,-500.0,0.00016438,2]
[393451415,1762673438465,-500.0,0.00016438,2]
[393451416,1762673438475,-1680.0,0.00016499,2]
[393451417,1762673438486,-15238.06643167,0.000165,2]
[393451418,1762673438496,-300.0,0.000165,2]
[393451419,1762673438506,-300.0,0.000165,2]
[393451420,1762673438516,-300.0,0.000165,2]
[393451421,1762673438526,-2500.0,0.000165,2]
[393451422,1762673438536,-284.32759898,0.000165,2]
[393451423,1762673438546,-193.0,0.000165,2]
[393451424,1762673438555,-195.0,0.000165,2]
[393451425,1762673438566,-250.0,0.000165,2]
[393451426,1762673438576,-200.0,0.000165,2]
[393451427,1762673438585,-300.0,0.000165,2]
[393451428,1762673438595,-19852.48433528,0.00016512,2]
[393451429,1762673438605,-300.69997396,0.00016567,2]
[393451430,1762673438615,-815.78716976,0.00016614,2]
[393451431,1762673438625,-19852.48433528,0.00016685,2]
[393451432,1762673438635,-2102.2160931,0.00016695,2]
[393451433,1762673438645,-11172.15689976,0.000167,2]
[393451434,1762673438656,-224.4659817,0.000167,2]
[393451435,1762673438665,-451.37,0.00016758,2]
[393451436,1762673438675,-193.0,0.0001683,2]
[393451437,1762673438685,-195.0,0.0001683,2]
[393451438,1762673438695,-250.0,0.0001683,2]
[393451439,1762673438706,-19852.48433528,0.00016859,2]
[393451440,1762673438723,-300.69997396,0.000169,2]
[393451441,1762673438732,-1000.0,0.00016921,2]
[393451442,1762673438742,-1002.12377643,0.00016921,2]
[393451443,1762673438752,-505.15717151,0.00016921,2]
[393451444,1762673438762,-502.47934008,0.00016921,2]
[393451445,1762673438772,-1000.0,0.00016921,2]
[393451446,1762673438782,-500.0,0.00016921,2]
[393451447,1762673438792,-1000.0,0.00016921,2]
[393451448,1762673438802,-500.0,0.00016973,2]
[393451449,1762673438813,-595.50227902,0.00016973,2]
[393451450,1762673438823,-500.0,0.00016973,2]
[393451451,1762673438833,-501.45300556,0.00016973,2]
[393451452,1762673438843,-89306.62042061,0.0001699,2]
[393451453,1762673438854,-250.0,0.00017,2]
[393451454,1762673438865,-160.0,0.00017,2]
[393451455,1762673438880,-19852.48433528,0.00017032,2]
[393451456,1762673438890,-815.78716976,0.00017043,2]
[393451457,1762673438900,-469.0678135,0.00017051,2]
[393451458,1762673438910,-21532.92512814,0.00017085,2]
[393451459,1762673438919,-303.65,0.00017178,2]
[393451460,1762673438929,-19852.48433528,0.00017206,2]
[393451461,1762673438940,-300.69997396,0.00017233,2]
[393451462,1762673438949,-224.4659817,0.000173,2]
[393451463,1762673438960,-900.0,0.000173,6]
[393451464,1762673438970,-239.0,0.00017318,2]
[393451465,1762673438980,-433.0,0.00017339,2]
[393451466,1762673438990,-239.0,0.0001736,2]
[393451467,1762673439001,-298.43740158,0.00017366,2]
[393451468,1762673439011,-19852.48433528,0.00017379,2]
[393451469,1762673439021,-1800.0,0.000174,6]
[393451470,1762673439031,-3421.57246058,0.00017421,2]
[393451471,1762673439050,-1500.0,0.00017468,2]
[393451472,1762673439068,-598.56150961,0.00017468,2]
[393451473,1762673439082,-1500.0,0.00017468,2]
[393451474,1762673439097,-815.78716976,0.00017471,2]
[393451475,1762673439112,-400.46646103,0.000175,2]
[393451476,1762673439128,-2700.0,0.000175,6]
[393451477,1762673439146,-3775.04973897,0.00017518,2]
[393451478,1762673439162,-1000.0,0.00017521,2]
[393451479,1762673439175,-338.57656952,0.00017534,2]
[393451480,1762673439186,-19852.48433528,0.00017553,2]
[393451481,1762673439201,-300.69997396,0.00017567,2]
[393451482,1762673439216,-3600.0,0.000176,6]
[393451483,1762673439232,-239.0,0.00017657,2]
[393451484,1762673439248,-500.0,0.00017698,2]
[393451485,1762673439263,-4500.0,0.000177,6]
[393451486,1762673439276,-239.0,0.00017708,2]
[393451487,1762673439289,-239.0,0.00017709,2]
[393451488,1762673439305,-239.0,0.00017717,2]
[393451490,1762673439321,-19852.48433528,0.00017726,2]
[393451492,1762673439334,-500.0,0.00017727,2]
[393451493,1762673439347,-298.43740158,0.00017731,2]
[393451494,1762673439361,-399.0,0.00017734,2]
[393451495,1762673439375,-239.0,0.00017794,2]
[393451496,1762673439390,-900.0,0.000178,6]
[393451497,1762673439402,-239.0,0.00017842,2]
[393451498,1762673439415,-399.0,0.00017871,2]
[393451499,1762673439427,-19852.48433528,0.000179,2]
[393451500,1762673439439,-900.0,0.000179,6]
[393451501,1762673439454,-1325.44357665,0.000179,2]
[393451502,1762673439468,-300.69997396,0.000179,2]
[393451503,1762673439479,-815.78716976,0.000179,2]
[393451504,1762673439490,-224.4659817,0.000179,2]
[393451505,1762673439503,-1000.0,0.00017949,2]
[393451506,1762673439517,-587.0,0.00017966,2]
[393451507,1762673439528,-587.0,0.00017966,2]
[393451508,1762673439539,-195.0,0.00017971,2]
[393451509,1762673439551,-300.0,0.00017971,2]
[393451510,1762673439564,-300.0,0.00017971,2]
[393451511,1762673439577,-300.0,0.00017971,2]
[393451512,1762673439589,-2500.0,0.00017971,2]
[393451513,1762673439603,-3676.96633259,0.00017971,4]
[393451514,1762673439615,-501.75808297,0.00017973,2]
[393451515,1762673439627,-500.0,0.00017973,2]
[393451516,1762673439638,-500.97801948,0.00017973,2]
[393451517,1762673439650,-500.0,0.00017973,2]
[393451518,1762673439662,-300.0,0.00017986,2]
[393451519,1762673439675,-15408.2449459,0.00017999,2]
[393451520,1762673439688,-150.580707,0.00018,2]
[393451521,1762673439700,-7067873.19576996,0.00018,2]
[393451522,1762673439825,296.98713944,0.00014999,2]
[393451523,1762673439882,242.5962021,0.00014999,2]
[393451524,1762673439949,500.0,0.00014999,2]
[393451525,1762673440010,570.29200544,0.00014999,2]
[393451526,1762673440135,-1557.38467929,0.0001725,7]
[393451527,1762673440151,-424.9218934,0.0001725,7]
[393451528,1762673440164,-1704.52394832,0.00018,2]
[393451529,1762673440753,-1.7e-07,0.00018,2]
[393451530,1762673440765,-50474.8625025,0.00018,2]
[393451531,1762673440889,393.10992567,0.00014925,2]
[393451532,1762673440922,57.58245033,0.00014925,2]
[393451588,1762673444262,-27606.6999442,0.00018,2]
[393451589,1762673444452,-326.412,0.00018,2]
[393451590,1762673444633,226.48012163,0.00014999,2]
[393451605,1762673445630,-270.0,0.00016438,2]
[393451606,1762673445640,-616.44998015,0.00018,2]
[393451607,1762673445652,-4217.0,0.00018,2]
[393451608,1762673445668,-5212.36011455,0.00018,2]
[393451618,1762673459647,234.97669627,0.00014999,2]
[393451619,1762673537058,705.04220838,0.00039151,120]
[393451620,1762673776538,460.0,0.00039256,120]
[393451621,1762673869121,2036.16,8.52e-05,2]
[393451622,1762673869461,1796.53878695,8.951e-05,2]
[393451623,1762673869485,239.62121305,8.951e-05,2]
[393451624,1762673869536,2036.16,9.382e-05,2]
[393451625,1762673869710,2036.16,9.813e-05,2]
[393451626,1762673869896,2036.16,0.00010244,2]
[393451627,1762673870295,2036.16,0.00010674,2]
[393451628,1762673870496,1615.74878695,0.00011105,2]
[393451629,1762673870520,420.41121305,0.00011105,2]
[393451630,1762673870777,2036.16,0.00011536,2]
[393451631,1762673870961,2036.16,0.00011967,2]
[393451632,1762673871158,2036.16,0.00012398,2]
[393451633,1762673871358,2036.16,0.00012829,2]
[393451634,1762673871556,1434.95878695,0.0001326,2]
[393451635,1762673871586,601.20121305,0.0001326,2]
[393451636,1762673871755,2036.16,0.0001369,2]
[393451637,1762673871952,2036.16,0.00014121,2]
[393451638,1762673872154,2036.16,0.00014552,2]
[393451639,1762673872552,2036.16,0.00014983,2]
[393451640,1762673876457,-170.54317457,0.00015414,2]
[393451641,1762673880625,-305.33426883,0.00015414,2]
[393451642,1762673882992,-333.0,0.00015414,2]
[393451643,1762673899256,-195.0,0.00015414,2]
[393451644,1762673903366,-333.34,0.00015414,2]
[393451645,1762673910047,-274.81412696,0.00015414,2]
[393451646,1762673912384,-285.277263,0.00015414,2]
[393451647,1762673929070,-138.85116664,0.00015414,2]
[393451648,1762673929093,-64.1598593,0.00015629,2]
[393451649,1762673932060,-130.8401407,0.00015629,2]
[393451650,1762673932085,-72.18162059,0.00015845,2]
[393451651,1762673934171,-347.42783103,0.00015845,2]
[393451652,1762673937966,-300.00579163,0.00015845,2]
[393451653,1762673943475,-358.68384234,0.00015845,2]
[393451654,1762674055031,500.0,0.00014999,2]
[393451655,1762674066247,754.16878695,0.00013699,2]
[393451656,1762674066280,245.83121305,0.00013699,2]
[393451658,1762674076459,500.0,0.00014999,2]
[393451659,1762674276517,178.32,0.00012718,2]
[393451660,1762674276723,178.32,0.00014308,2]
[393451661,1762674281082,634.70667195,0.00014999,2]
[393451662,1762674286875,200.0,0.00011939,2]
[393451663,1762674336281,-260.74525064,0.0001583,2]
[393451664,1762674336312,-957.86091441,0.00015845,2]
[393451665,1762674336342,-195.0,0.00015865,2]
[393451666,1762674336375,-300.0,0.00015885,2]
[393451667,1762674336407,-178.32,0.00015897,2]
[393451668,1762674336436,-250.0,0.00015925,2]
[393451669,1762674336464,-617.93,0.0001593,2]
[393451670,1762674336492,-179.5482505,0.00015967,2]
[393451671,1762674336520,-150.0,0.00015989,2]
[393451672,1762674336548,-152.0,0.00016,3]
[393451673,1762674336576,-1242.0,0.00016,3]
[393451674,1762674336604,-152.0,0.00016,3]
[393451675,1762674342090,-1242.0,0.00016,3]
[393451676,1762674342118,-827.0,0.00016,3]
[393451677,1762674342152,-152.0,0.00016,3]
[393451678,1762674342181,-152.0,0.00016,3]
[393451679,1762674342209,-827.0,0.00016,3]
[393451680,1762674342238,-1242.0,0.00016,3]
[393451681,1762674342420,-152.0,0.00016,3]
[393451682,1762674342452,-152.0,0.00016,3]
[393451683,1762674345172,-827.0,0.00016,3]
[393451684,1762674345215,-1242.0,0.00016,3]
[393451685,1762674345255,-152.0,0.00016,3]
[393451686,1762674345293,-152.0,0.00016,3]
[393451687,1762674345331,-827.0,0.00016,3]
[393451688,1762674345379,-1242.0,0.00016,3]
[393451689,1762674345419,-152.0,0.00016,3]
[393451690,1762674345459,-152.0,0.00016,3]
[393451705,1762674560615,500.0,0.00014999,2]
[393451706,1762674560845,500.0,0.00014999,2]
[393451707,1762674561071,500.0,0.00014999,2]
[393451708,1762674561304,500.0,0.00014999,2]
[393451709,1762674561534,500.0,0.00014999,2]
[393451710,1762674581055,435.56368762,0.00014999,2]
[393451723,1762674631619,-173.8301671,0.00015899,2]
[393451724,1762674631628,-171.07018412,0.000159,2]
[393451725,1762674631638,-188.12924322,0.000159,2]
[393451726,1762674631647,-3378.30064858,0.000159,2]
[393451727,1762674631656,-250.0,0.0001595,2]
[393451728,1762674631665,-1200.0,0.00015999,2]
[393451729,1762674631675,-300.0,0.00015999,2]
[393451730,1762674631685,-300.0,0.00015999,2]
[393451731,1762674631695,-1200.0,0.00015999,2]
[393451732,1762674631704,-300.0,0.00015999,2]
[393451733,1762674631714,-1242.0,0.00016,3]
[393451734,1762674631723,-827.0,0.00016,3]
[393451735,1762674631734,-284.7786349,0.00016,3]
[393451736,1762674631744,-152.0,0.00016,3]
[393451737,1762674631753,-1242.0,0.00016,3]
[393451738,1762674631763,-827.0,0.00016,3]
[393451739,1762674631772,-152.0,0.00016,3]
[393451740,1762674631781,-1242.0,0.00016,3]
[393451741,1762674631791,-827.0,0.00016,3]
[393451742,1762674631801,-152.0,0.00016,3]
[393451743,1762674631810,-1242.0,0.00016,3]
[393451744,1762674631820,-768.8328181,0.00016,3]
[393451745,1762674631829,-152.0,0.00016,3]
[393451746,1762674631839,-1242.0,0.00016,3]
[393451747,1762674631848,-152.0,0.00016,3]
[393451748,1762674631858,-1242.0,0.00016,3]
[393451749,1762674631867,-151.0,0.00016,3]
[393451750,1762674631877,-1242.0,0.00016,3]
[393451751,1762674631886,-151.0,0.00016,3]
[393451752,1762674631896,-1242.0,0.00016,3]
[393451753,1762674631907,-151.0,0.00016,3]
[393451754,1762674631916,-1242.0,0.00016,3]
[393451755,1762674631926,-151.0,0.00016,3]
[393451756,1762674631936,-1242.0,0.00016,3]
[393451757,1762674631946,-151.0,0.00016,3]
[393451760,1762674631955,-1242.0,0.00016,3]
[393451762,1762674631964,-151.0,0.00016,3]
[393451764,1762674631973,-1242.0,0.00016,3]
[393451765,1762674631982,-151.0,0.00016,3]
[393451766,1762674631991,-1242.0,0.00016,3]
[393451767,1762674632000,-152.0,0.00016,3]
[393451768,1762674632009,-152.0,0.00016,3]
[393451769,1762674632018,-290.0009825,0.00016,3]
[393451770,1762674632027,-1242.0,0.00016,3]
[393451771,1762674632036,-151.0,0.00016,3]
[393451772,1762674632045,-1242.0,0.00016,3]
[393451773,1762674632054,-151.0,0.00016,3]
[393451774,1762674632064,-1242.0,0.00016,3]
[393451775,1762674632074,-151.0,0.00016,3]
[393451776,1762674632084,-1242.0,0.00016,3]
[393451777,1762674632094,-151.0,0.00016,3]
[393451778,1762674632103,-540.24567319,0.00016,3]
[393451779,1762674632113,-151.0,0.00016,3]
[393451780,1762674632123,-151.0,0.00016,3]
[393451781,1762674632132,-151.0,0.00016,3]
[393451782,1762674632141,-151.0,0.00016,3]
[393451783,1762674632151,-151.0,0.00016,3]
[393451784,1762674632161,-166.0,0.00016,3]
[393451785,1762674632170,-166.0,0.00016,3]
[393451786,1762674632180,-166.0,0.00016,3]
[393451787,1762674632190,-166.0,0.00016,3]
[393451788,1762674632199,-166.0,0.00016,3]
[393451789,1762674632209,-166.0,0.00016,3]
[393451790,1762674632218,-151.0,0.00016,3]
[393451791,1762674632228,-253.35888941,0.00016,3]
[393451792,1762674632237,-151.0,0.00016,3]
[393451793,1762674632247,-478.20968403,0.00016,3]
[393451794,1762674632256,-151.0,0.00016,3]
[393451795,1762674632266,-151.0,0.00016,3]
[393451796,1762674632275,-151.0,0.00016,3]
[393451797,1762674632284,-151.0,0.00016,3]
[393451798,1762674632294,-151.0,0.00016,3]
[393451799,1762674632303,-151.0,0.00016,3]
[393451800,1762674632312,-151.0,0.00016,3]
[393451801,1762674632322,-151.0,0.00016,3]
[393451802,1762674632332,-151.0,0.00016,3]
[393451803,1762674632523,-151.0,0.00016,3]
[393451804,1762674632538,-151.0,0.00016,3]
[393451805,1762674632548,-151.0,0.00016,3]
[393451806,1762674632558,-151.0,0.00016,3]
[393451807,1762674632568,-151.0,0.00016,3]
[393451808,1762674632577,-151.0,0.00016,3]
[393451809,1762674632587,-151.0,0.00016,3]
[393451810,1762674632597,-151.0,0.00016,3]
[393451811,1762674632607,-151.0,0.00016,3]
[393451812,1762674632617,-151.0,0.00016,3]
[393451813,1762674632627,-151.0,0.00016,3]
[393451814,1762674632637,-151.0,0.00016,3]
[393451815,1762674632647,-151.0,0.00016,3]
[393451816,1762674632656,-151.0,0.00016,3]
[393451817,1762674632666,-151.0,0.00016,3]
[393451818,1762674632675,-151.0,0.00016,3]
[393451819,1762674632684,-194.6588664,0.00016,3]